[Event "Live Chess"]
[Site "Chess.com"]
[Date "2023.05.20"]
[Round "-"]
[White "Olisingapore"]
[Black "Missedidea"]
[Result "0-1"]
[WhiteElo "1852"]
[BlackElo "1759"]
[TimeControl "300"]
[EndTime "15:31:47 PDT"]
[Termination "Missedidea won by checkmate"]

1. d4 {[%clk 0:04:59.1]} 1... Nf6 {[%clk 0:04:57.8]} 2. c4 {[%clk 0:04:58.6]}
2... g6 {[%clk 0:04:55.8]} 3. g3 {[%clk 0:04:58.1]} 3... Bg7 {[%clk 0:04:54.2]}
4. Bg2 {[%clk 0:04:57.8]} 4... O-O {[%clk 0:04:52.7]} 5. Nc3 {[%clk 0:04:57.4]}
5... d6 {[%clk 0:04:51]} 6. Nf3 {[%clk 0:04:57]} 6... Nc6 {[%clk 0:04:49.4]} 7.
O-O {[%clk 0:04:56.6]} 7... Nd7 {[%clk 0:04:47.3]} 8. e4 {[%clk 0:04:53.6]} 8...
Nb6 {[%clk 0:04:42.5]} 9. b3 {[%clk 0:04:50.2]} 9... e5 {[%clk 0:04:32.8]} 10.
d5 {[%clk 0:04:48.8]} 10... Nd4 {[%clk 0:04:31]} 11. Nxd4 {[%clk 0:04:44.9]}
11... exd4 {[%clk 0:04:29.1]} 12. Ne2 {[%clk 0:04:42.4]} 12... d3 {[%clk
0:04:23.8]} 13. Qxd3 {[%clk 0:04:24]} 13... Bxa1 {[%clk 0:04:20.6]} 14. Nd4
{[%clk 0:04:22.9]} 14... Qf6 {[%clk 0:04:07.8]} 15. Be3 {[%clk 0:04:14.9]} 15...
Bb2 {[%clk 0:03:51.5]} 16. Qd2 {[%clk 0:04:10.1]} 16... Bxd4 {[%clk 0:03:36.6]}
17. Bxd4 {[%clk 0:04:08]} 17... Qe7 {[%clk 0:03:35.7]} 18. Qh6 {[%clk
0:03:57.6]} 18... f6 {[%clk 0:03:34.1]} 19. Qd2 {[%clk 0:03:34.5]} 19... Nd7
{[%clk 0:03:30]} 20. Re1 {[%clk 0:03:32.3]} 20... Ne5 {[%clk 0:03:27.6]} 21. f4
{[%clk 0:03:27.4]} 21... Nf7 {[%clk 0:03:24.7]} 22. Qc3 {[%clk 0:03:22.7]} 22...
Nh6 {[%clk 0:03:19.8]} 23. c5 {[%clk 0:03:17.6]} 23... Bd7 {[%clk 0:03:11.1]}
24. cxd6 {[%clk 0:03:13.9]} 24... cxd6 {[%clk 0:03:07.8]} 25. Qb4 {[%clk
0:02:59.3]} 25... b6 {[%clk 0:03:02.9]} 26. a4 {[%clk 0:02:55]} 26... Rac8
{[%clk 0:02:58.6]} 27. Qd2 {[%clk 0:02:49]} 27... Rfe8 {[%clk 0:02:45]} 28. e5
{[%clk 0:02:33.6]} 28... fxe5 {[%clk 0:02:37.8]} 29. fxe5 {[%clk 0:02:32.4]}
29... Nf5 {[%clk 0:02:30.5]} 30. e6 {[%clk 0:02:29.5]} 30... Rcd8 {[%clk
0:02:13.3]} 31. exd7 {[%clk 0:02:23.2]} 31... Qxe1+ {[%clk 0:02:10.9]} 32. Qxe1
{[%clk 0:02:19.3]} 32... Rxe1+ {[%clk 0:02:08.3]} 33. Kf2 {[%clk 0:02:17.5]}
33... Rd1 {[%clk 0:01:59.9]} 34. Bf6 {[%clk 0:02:13.9]} 34... Rxd7 {[%clk
0:01:57.8]} 35. Bf3 {[%clk 0:02:10.6]} 35... Rd3 {[%clk 0:01:54.4]} 36. g4
{[%clk 0:02:06.3]} 36... Ng7 {[%clk 0:01:49.7]} 37. b4 {[%clk 0:02:00.9]} 37...
Ne8 {[%clk 0:01:44.3]} 38. Bb2 {[%clk 0:01:48.6]} 38... Rb3 {[%clk 0:01:39]} 39.
Bc1 {[%clk 0:01:46.7]} 39... Rxb4 {[%clk 0:01:35.5]} 40. Bd2 {[%clk 0:01:45.3]}
40... Rxa4 {[%clk 0:01:31.6]} 41. Bd1 {[%clk 0:01:44.9]} 41... Ra2 {[%clk
0:01:29]} 42. Ke3 {[%clk 0:01:43]} 42... Nf6 {[%clk 0:01:24.9]} 43. Bb3 {[%clk
0:01:40.5]} 43... Ra3 {[%clk 0:01:20.2]} 44. g5 {[%clk 0:01:34.6]} 44... Nh5
{[%clk 0:01:17.1]} 45. Kd4 {[%clk 0:01:31.9]} 45... Rxb3 {[%clk 0:01:15.8]} 46.
Kc4 {[%clk 0:01:30.9]} 46... Rh3 {[%clk 0:01:13.7]} 47. Kb5 {[%clk 0:01:28.1]}
47... Rxh2 {[%clk 0:01:12.6]} 48. Kc6 {[%clk 0:01:27.6]} 48... Rxd2 {[%clk
0:01:10.7]} 49. Kxd7 {[%clk 0:01:27.5]} 49... b5 {[%clk 0:01:09.6]} 50. Kxd6
{[%clk 0:01:27]} 50... b4 {[%clk 0:01:08.7]} 51. Kc6 {[%clk 0:01:25.8]} 51... b3
{[%clk 0:01:07.9]} 52. d6 {[%clk 0:01:25.4]} 52... b2 {[%clk 0:01:07.1]} 53. Kc7
{[%clk 0:01:24.9]} 53... b1=Q {[%clk 0:01:05.6]} 54. d7 {[%clk 0:01:24.8]} 54...
Qc2+ {[%clk 0:01:03.1]} 55. Kd8 {[%clk 0:01:23.7]} 55... Qd3 {[%clk 0:00:58.6]}
56. Ke7 {[%clk 0:01:22.2]} 56... Qxd7# {[%clk 0:00:57.3]} 0-1

[Event "Live Chess"]
[Site "Chess.com"]
[Date "2023.05.20"]
[Round "-"]
[White "jennybobby44"]
[Black "CheckThis4"]
[Result "0-1"]
[WhiteElo "1846"]
[BlackElo "2534"]
[TimeControl "300"]
[EndTime "15:31:47 PDT"]
[Termination "CheckThis4 won by checkmate"]

1. e4 {[%clk 0:04:56]} 1... Nc6 {[%clk 0:04:56.6]} 2. g3 {[%clk 0:04:52.9]} 2...
d5 {[%clk 0:04:54.7]} 3. Bg2 {[%clk 0:04:49.9]} 3... dxe4 {[%clk 0:04:52.6]} 4.
Bxe4 {[%clk 0:04:49.3]} 4... Nf6 {[%clk 0:04:52.3]} 5. Bg2 {[%clk 0:04:48.4]}
5... Bg4 {[%clk 0:04:50.2]} 6. f3 {[%clk 0:04:44.3]} 6... Bf5 {[%clk 0:04:45.9]}
7. Ne2 {[%clk 0:04:38.3]} 7... e5 {[%clk 0:04:44.5]} 8. O-O {[%clk 0:04:29.7]}
8... Bc5+ {[%clk 0:04:43.1]} 9. Kh1 {[%clk 0:04:29.3]} 9... h5 {[%clk
0:04:42.6]} 10. h4 {[%clk 0:04:25.3]} 10... g5 {[%clk 0:04:39.7]} 11. hxg5
{[%clk 0:04:23.2]} 11... h4 {[%clk 0:04:38.3]} 12. g4 {[%clk 0:04:06.2]} 12...
h3 {[%clk 0:04:37.4]} 13. gxf5 {[%clk 0:04:05.3]} 13... Nd5 {[%clk 0:04:25.7]}
14. d4 {[%clk 0:04:02.4]} 14... Nxd4 {[%clk 0:04:19.3]} 15. Nxd4 {[%clk
0:03:57.4]} 15... Bxd4 {[%clk 0:04:19.2]} 16. c3 {[%clk 0:03:46]} 16... Be3
{[%clk 0:04:16.4]} 17. Qe2 {[%clk 0:03:18.3]} 17... hxg2+ {[%clk 0:04:13.2]} 18.
Kxg2 {[%clk 0:03:08.9]} 18... Qxg5# {[%clk 0:04:11.9]} 0-1

[Event "Live Chess"]
[Site "Chess.com"]
[Date "2023.05.20"]
[Round "-"]
[White "weibs440"]
[Black "laminaaprod"]
[Result "0-1"]
[WhiteElo "941"]
[BlackElo "2246"]
[TimeControl "300"]
[EndTime "15:31:49 PDT"]
[Termination "laminaaprod won by resignation"]

1. e4 {[%clk 0:04:59.3]} 1... d5 {[%clk 0:04:43.4]} 2. exd5 {[%clk 0:04:57.7]}
2... Nf6 {[%clk 0:04:41.2]} 3. d4 {[%clk 0:04:55.5]} 3... Nxd5 {[%clk
0:04:35.3]} 4. c4 {[%clk 0:04:52.2]} 4... Nf6 {[%clk 0:04:34.3]} 5. Nf3 {[%clk
0:04:51.7]} 5... Bg4 {[%clk 0:04:31.3]} 6. d5 {[%clk 0:04:28.5]} 6... g6 {[%clk
0:04:29]} 7. Nc3 {[%clk 0:04:20.7]} 7... Bg7 {[%clk 0:04:24.6]} 8. c5 {[%clk
0:03:52.1]} 8... O-O {[%clk 0:04:16.6]} 9. Bc4 {[%clk 0:03:49.9]} 9... Nbd7
{[%clk 0:04:14.4]} 10. b4 {[%clk 0:03:44.1]} 10... Nxd5 {[%clk 0:03:56.9]} 11.
Bxd5 {[%clk 0:03:32.8]} 11... Bxc3+ {[%clk 0:03:55.1]} 12. Bd2 {[%clk
0:03:20.1]} 12... Bxa1 {[%clk 0:03:52.2]} 13. Qxa1 {[%clk 0:03:20]} 13... Nf6
{[%clk 0:03:49.6]} 14. Bxb7 {[%clk 0:02:48.5]} 14... Rb8 {[%clk 0:03:37.4]} 15.
Ba6 {[%clk 0:02:43.1]} 15... Bxf3 {[%clk 0:03:33.7]} 16. gxf3 {[%clk 0:02:38.6]}
16... Qd5 {[%clk 0:03:32.7]} 17. O-O {[%clk 0:02:21.8]} 17... Qxd2 {[%clk
0:03:25.2]} 18. Rd1 {[%clk 0:02:12.5]} 18... Qf4 {[%clk 0:03:13.2]} 19. Qc3
{[%clk 0:01:58]} 19... Rfd8 {[%clk 0:03:08.9]} 20. Re1 {[%clk 0:01:52.4]} 20...
Qd2 {[%clk 0:02:59.1]} 21. Qxd2 {[%clk 0:01:46.5]} 21... Rxd2 {[%clk 0:02:58]}
22. Rxe7 {[%clk 0:01:31.2]} 22... Rd7 {[%clk 0:02:52.5]} 23. Re2 {[%clk
0:01:24]} 23... Rxb4 {[%clk 0:02:48.1]} 24. Bc8 {[%clk 0:01:17.5]} 24... Rd1+
{[%clk 0:02:41.2]} 25. Kg2 {[%clk 0:01:14]} 25... Kf8 {[%clk 0:02:40.7]} 26. Rc2
{[%clk 0:00:55.4]} 26... h5 {[%clk 0:02:22.5]} 27. h3 {[%clk 0:00:36.2]} 27...
Nd5 {[%clk 0:02:16.7]} 28. Kg3 {[%clk 0:00:23.5]} 28... h4+ {[%clk 0:02:14.3]}
0-1

[Event "Live Chess"]
[Site "Chess.com"]
[Date "2023.05.20"]
[Round "-"]
[White "jagbama"]
[Black "Man-Del-Brot"]
[Result "1-0"]
[WhiteElo "1131"]
[BlackElo "1097"]
[TimeControl "300"]
[EndTime "15:31:50 PDT"]
[Termination "jagbama won on time"]

1. e4 {[%clk 0:04:58]} 1... e5 {[%clk 0:04:58]} 2. Nf3 {[%clk 0:04:57.3]} 2...
Nc6 {[%clk 0:04:56.9]} 3. Bc4 {[%clk 0:04:56.9]} 3... f5 {[%clk 0:04:55.4]} 4.
O-O {[%clk 0:04:39.5]} 4... fxe4 {[%clk 0:04:43.1]} 5. Nxe5 {[%clk 0:04:32.2]}
5... Nxe5 {[%clk 0:04:33.5]} 6. Qh5+ {[%clk 0:04:24.9]} 6... g6 {[%clk
0:04:30.1]} 7. Qxe5+ {[%clk 0:04:22.9]} 7... Qe7 {[%clk 0:04:03.3]} 8. Qxh8
{[%clk 0:04:20.4]} 8... Nf6 {[%clk 0:03:57.5]} 9. d3 {[%clk 0:04:06.8]} 9... d6
{[%clk 0:03:55.5]} 10. Bg5 {[%clk 0:04:03.6]} 10... Bd7 {[%clk 0:03:15.5]} 11.
Bxf6 {[%clk 0:03:56.8]} 11... O-O-O {[%clk 0:01:19.5]} 12. Bxe7 {[%clk
0:03:45.9]} 12... Bxe7 {[%clk 0:01:18.3]} 13. Qxh7 {[%clk 0:03:44.2]} 13... Bf6
{[%clk 0:00:59.9]} 14. Nc3 {[%clk 0:03:39.1]} 14... Bf5 {[%clk 0:00:53.1]} 15.
Nd5 {[%clk 0:03:34.1]} 15... Rd7 {[%clk 0:00:37.7]} 16. Qh6 {[%clk 0:02:45.9]}
16... Bxb2 {[%clk 0:00:32.1]} 17. Rab1 {[%clk 0:02:33.4]} 17... Bg7 {[%clk
0:00:29.2]} 18. Qe3 {[%clk 0:02:28.4]} 18... c6 {[%clk 0:00:04.4]} 19. dxe4
{[%clk 0:02:18.2]} 1-0

[Event "Live Chess"]
[Site "Chess.com"]
[Date "2023.05.20"]
[Round "-"]
[White "ExIsambard"]
[Black "AbilifyXL"]
[Result "1-0"]
[WhiteElo "1959"]
[BlackElo "1968"]
[TimeControl "300"]
[EndTime "15:31:57 PDT"]
[Termination "ExIsambard won by resignation"]

1. d4 {[%clk 0:04:56.9]} 1... d5 {[%clk 0:04:59.9]} 2. Bg5 {[%clk 0:04:55]} 2...
c6 {[%clk 0:04:59.8]} 3. e3 {[%clk 0:04:53]} 3... Nf6 {[%clk 0:04:55.4]} 4. Bd3
{[%clk 0:04:52]} 4... Bg4 {[%clk 0:04:54.2]} 5. Nf3 {[%clk 0:04:50.7]} 5... e6
{[%clk 0:04:53.2]} 6. h3 {[%clk 0:04:49.8]} 6... Bh5 {[%clk 0:04:52.3]} 7. c3
{[%clk 0:04:49]} 7... Nbd7 {[%clk 0:04:45.7]} 8. Nbd2 {[%clk 0:04:47]} 8... Be7
{[%clk 0:04:42.8]} 9. Qc2 {[%clk 0:04:46.2]} 9... Bg6 {[%clk 0:04:41.3]} 10.
Bxg6 {[%clk 0:04:41.4]} 10... hxg6 {[%clk 0:04:41.2]} 11. O-O-O {[%clk
0:04:37.6]} 11... c5 {[%clk 0:04:39.6]} 12. Kb1 {[%clk 0:04:32.4]} 12... Rc8
{[%clk 0:04:38.4]} 13. Bxf6 {[%clk 0:04:29.5]} 13... Nxf6 {[%clk 0:04:36.4]} 14.
Ne5 {[%clk 0:04:27.6]} 14... cxd4 {[%clk 0:04:34.6]} 15. exd4 {[%clk 0:04:26.6]}
15... O-O {[%clk 0:04:33.7]} 16. h4 {[%clk 0:04:22.6]} 16... b5 {[%clk
0:04:32.8]} 17. h5 {[%clk 0:04:21.6]} 17... gxh5 {[%clk 0:04:31.5]} 18. g4
{[%clk 0:04:17.7]} 18... b4 {[%clk 0:04:21.3]} 19. g5 {[%clk 0:04:07.4]} 19...
bxc3 {[%clk 0:04:09.7]} 20. gxf6 {[%clk 0:04:03.5]} 20... Bxf6 {[%clk
0:04:08.4]} 21. Rxh5 {[%clk 0:03:58.1]} 21... Re8 {[%clk 0:03:48.2]} 22. Qh7+
{[%clk 0:03:56.3]} 22... Kf8 {[%clk 0:03:47.3]} 23. bxc3 {[%clk 0:03:26.7]}
23... Rxc3 {[%clk 0:03:43.7]} 24. Nb3 {[%clk 0:03:24]} 24... Qb6 {[%clk
0:03:35.3]} 25. Nd7+ {[%clk 0:03:20.9]} 1-0

[Event "Live Chess"]
[Site "Chess.com"]
[Date "2023.05.20"]
[Round "-"]
[White "KeithArkell"]
[Black "EdenHazard8"]
[Result "1-0"]
[WhiteElo "2608"]
[BlackElo "2063"]
[TimeControl "300"]
[EndTime "15:32:00 PDT"]
[Termination "KeithArkell won by resignation"]

1. d4 {[%clk 0:04:58.7]} 1... Nf6 {[%clk 0:04:58]} 2. Nf3 {[%clk 0:04:57.9]}
2... d5 {[%clk 0:04:56.9]} 3. c4 {[%clk 0:04:57.1]} 3... e6 {[%clk 0:04:56.3]}
4. cxd5 {[%clk 0:04:56.3]} 4... exd5 {[%clk 0:04:55]} 5. Nc3 {[%clk 0:04:55.6]}
5... c6 {[%clk 0:04:53.7]} 6. Qc2 {[%clk 0:04:53.6]} 6... Bd6 {[%clk 0:04:47.8]}
7. Bg5 {[%clk 0:04:52.1]} 7... O-O {[%clk 0:04:41.5]} 8. e3 {[%clk 0:04:50.2]}
8... a5 {[%clk 0:04:40.1]} 9. Bd3 {[%clk 0:04:49.2]} 9... h6 {[%clk 0:04:39]}
10. Bh4 {[%clk 0:04:47.7]} 10... Na6 {[%clk 0:04:37.4]} 11. a3 {[%clk
0:04:46.4]} 11... Nc7 {[%clk 0:04:36.1]} 12. O-O {[%clk 0:04:40.6]} 12... Ne6
{[%clk 0:04:33.8]} 13. Ne5 {[%clk 0:04:26.1]} 13... Qc7 {[%clk 0:04:21.8]} 14.
Bxf6 {[%clk 0:04:19.2]} 14... gxf6 {[%clk 0:04:21.2]} 15. Nf3 {[%clk 0:04:18]}
15... Ng5 {[%clk 0:04:15.5]} 16. Nh4 {[%clk 0:03:56.6]} 16... Bxh2+ {[%clk
0:04:08.3]} 17. Kh1 {[%clk 0:03:55.5]} 17... Bd6 {[%clk 0:03:53.9]} 18. Rac1
{[%clk 0:03:49.9]} 18... Qd7 {[%clk 0:03:45.8]} 19. Bf5 {[%clk 0:03:47.5]} 19...
Qe7 {[%clk 0:03:43.9]} 20. Bxc8 {[%clk 0:03:46.1]} 20... Raxc8 {[%clk
0:03:43.8]} 21. Nf5 {[%clk 0:03:44.9]} 21... Qe6 {[%clk 0:03:37.5]} 22. g3
{[%clk 0:03:43.2]} 22... Ne4 {[%clk 0:03:24.6]} 23. Nxe4 {[%clk 0:03:41.9]}
23... dxe4 {[%clk 0:03:23.3]} 24. Nxd6 {[%clk 0:03:41]} 24... Qxd6 {[%clk
0:03:22.3]} 25. Qxe4 {[%clk 0:03:39.9]} 25... Qd5 {[%clk 0:03:19.1]} 26. Qxd5
{[%clk 0:03:38.8]} 26... cxd5 {[%clk 0:03:19]} 27. Rc5 {[%clk 0:03:21.4]} 27...
Rxc5 {[%clk 0:02:56.4]} 28. dxc5 {[%clk 0:03:20]} 28... Rc8 {[%clk 0:02:56]} 29.
b4 {[%clk 0:03:18.6]} 29... axb4 {[%clk 0:02:49.8]} 30. axb4 {[%clk 0:03:18.5]}
30... b6 {[%clk 0:02:49.3]} 31. cxb6 {[%clk 0:03:06.4]} 31... Rb8 {[%clk
0:02:47.7]} 32. Rb1 {[%clk 0:02:59.4]} 32... Rxb6 {[%clk 0:02:46.6]} 33. Kg2
{[%clk 0:02:58.8]} 33... Kf8 {[%clk 0:02:45.2]} 34. Kf3 {[%clk 0:02:57.8]} 34...
Ke7 {[%clk 0:02:44.7]} 35. Ke2 {[%clk 0:02:55.1]} 35... Kd6 {[%clk 0:02:42.9]}
36. Kd3 {[%clk 0:02:54.4]} 36... f5 {[%clk 0:02:36]} 37. Kd4 {[%clk 0:02:51.9]}
37... f6 {[%clk 0:02:30.9]} 38. b5 {[%clk 0:02:50.7]} 38... h5 {[%clk
0:02:20.3]} 39. Rb2 {[%clk 0:02:48.6]} 39... f4 {[%clk 0:02:17.9]} 40. exf4
{[%clk 0:02:48]} 40... f5 {[%clk 0:02:17.4]} 41. Rb1 {[%clk 0:02:46.7]} 41...
Rb8 {[%clk 0:02:14.4]} 42. b6 {[%clk 0:02:45.9]} 42... Rb7 {[%clk 0:02:12.4]}
43. Rb2 {[%clk 0:02:44.6]} 1-0

[Event "Live Chess"]
[Site "Chess.com"]
[Date "2023.05.20"]
[Round "-"]
[White "Singapourfeuj"]
[Black "fretle"]
[Result "1-0"]
[WhiteElo "2213"]
[BlackElo "1831"]
[TimeControl "300"]
[EndTime "15:32:04 PDT"]
[Termination "Singapourfeuj won by resignation"]

1. d4 {[%clk 0:04:57.9]} 1... e6 {[%clk 0:04:57]} 2. Nf3 {[%clk 0:04:55.5]} 2...
b6 {[%clk 0:04:56]} 3. c4 {[%clk 0:04:54.4]} 3... Bb7 {[%clk 0:04:55.3]} 4. g3
{[%clk 0:04:53.5]} 4... Nf6 {[%clk 0:04:53.1]} 5. Bg2 {[%clk 0:04:52.8]} 5...
Be7 {[%clk 0:04:50.1]} 6. O-O {[%clk 0:04:51.8]} 6... O-O {[%clk 0:04:49.2]} 7.
Nc3 {[%clk 0:04:51.1]} 7... d5 {[%clk 0:04:33.9]} 8. cxd5 {[%clk 0:04:49.9]}
8... Nxd5 {[%clk 0:04:32.8]} 9. Re1 {[%clk 0:04:47.8]} 9... Nf6 {[%clk
0:04:12.5]} 10. e4 {[%clk 0:04:37.2]} 10... Nbd7 {[%clk 0:04:02.1]} 11. Bg5
{[%clk 0:04:34.6]} 11... h6 {[%clk 0:04:00.6]} 12. Be3 {[%clk 0:04:33.3]} 12...
Ng4 {[%clk 0:03:35.6]} 13. Bf4 {[%clk 0:04:30.2]} 13... a6 {[%clk 0:03:18]} 14.
h3 {[%clk 0:04:29.1]} 14... Ngf6 {[%clk 0:03:17]} 15. Rc1 {[%clk 0:04:26.8]}
15... Rc8 {[%clk 0:03:14.6]} 16. d5 {[%clk 0:04:25.1]} 16... exd5 {[%clk
0:02:57.1]} 17. exd5 {[%clk 0:04:23.7]} 17... Bc5 {[%clk 0:02:45.8]} 18. a3
{[%clk 0:04:17.8]} 18... Nh5 {[%clk 0:02:39.7]} 19. Bd2 {[%clk 0:04:11.9]} 19...
Nxg3 {[%clk 0:02:37.5]} 20. b4 {[%clk 0:04:10.7]} 20... Bd4 {[%clk 0:02:29.7]}
21. Nxd4 {[%clk 0:04:08.5]} 21... Qf6 {[%clk 0:02:07.8]} 22. Nc6 {[%clk
0:04:07.5]} 22... Nf5 {[%clk 0:01:44.6]} 23. Ne4 {[%clk 0:04:03.2]} 23... Qg6
{[%clk 0:01:41]} 24. Qg4 {[%clk 0:04:00.8]} 24... Qh7 {[%clk 0:01:27.6]} 25.
Qxf5 {[%clk 0:03:58.6]} 25... Qxf5 {[%clk 0:01:25.3]} 26. Ne7+ {[%clk
0:03:57.3]} 1-0

[Event "Live Chess"]
[Site "Chess.com"]
[Date "2023.05.20"]
[Round "-"]
[White "blowerd"]
[Black "Stanbad1"]
[Result "0-1"]
[WhiteElo "1399"]
[BlackElo "2398"]
[TimeControl "300"]
[EndTime "15:32:25 PDT"]
[Termination "Stanbad1 won on time"]

1. e4 {[%clk 0:04:55.4]} 1... e6 {[%clk 0:04:58.5]} 2. Nf3 {[%clk 0:04:55]} 2...
d5 {[%clk 0:04:57.8]} 3. exd5 {[%clk 0:04:52.9]} 3... exd5 {[%clk 0:04:56.7]} 4.
Bb5+ {[%clk 0:04:50.9]} 4... c6 {[%clk 0:04:55]} 5. Bd3 {[%clk 0:04:46.9]} 5...
Bd6 {[%clk 0:04:54.4]} 6. Nc3 {[%clk 0:04:45.7]} 6... Ne7 {[%clk 0:04:49.8]} 7.
O-O {[%clk 0:04:44.5]} 7... Bg4 {[%clk 0:04:46.9]} 8. h3 {[%clk 0:04:42.8]} 8...
Bh5 {[%clk 0:04:45.5]} 9. g4 {[%clk 0:04:37]} 9... Bg6 {[%clk 0:04:43.3]} 10.
Bxg6 {[%clk 0:04:35.6]} 10... hxg6 {[%clk 0:04:42.4]} 11. Ng5 {[%clk 0:04:32.3]}
11... Nd7 {[%clk 0:04:39.5]} 12. Qf3 {[%clk 0:04:31.2]} 12... Nf6 {[%clk
0:04:37.6]} 13. d3 {[%clk 0:04:27.5]} 13... Qc7 {[%clk 0:04:33]} 14. Qg2 {[%clk
0:04:10.4]} 14... Bf4 {[%clk 0:04:26.8]} 15. Bxf4 {[%clk 0:04:07.8]} 15... Qxf4
{[%clk 0:04:25.5]} 16. Nf3 {[%clk 0:04:06.3]} 16... O-O-O {[%clk 0:04:23.3]} 17.
Rae1 {[%clk 0:04:00.1]} 17... Rde8 {[%clk 0:04:20.4]} 18. Ne2 {[%clk 0:03:53.2]}
18... Qd6 {[%clk 0:04:17.1]} 19. Ned4 {[%clk 0:03:51.2]} 19... a6 {[%clk
0:03:57.7]} 20. Ng5 {[%clk 0:03:50.2]} 20... Rhf8 {[%clk 0:03:53.8]} 21. Re3
{[%clk 0:03:31.9]} 21... Qf4 {[%clk 0:03:45.4]} 22. Ngf3 {[%clk 0:03:21.2]}
22... c5 {[%clk 0:03:41.5]} 23. g5 {[%clk 0:03:14.7]} 23... cxd4 {[%clk
0:03:37.9]} 24. gxf6 {[%clk 0:03:13.6]} 24... dxe3 {[%clk 0:03:35.6]} 25. fxe7
{[%clk 0:03:12.6]} 25... Rxe7 {[%clk 0:03:34.6]} 26. fxe3 {[%clk 0:03:05.6]}
26... Qxe3+ {[%clk 0:03:33.2]} 27. Kh1 {[%clk 0:03:04.6]} 27... f6 {[%clk
0:03:31.5]} 28. Qxg6 {[%clk 0:03:01.1]} 28... Rh8 {[%clk 0:03:28.7]} 29. Qf5+
{[%clk 0:02:44.1]} 29... Qe6 {[%clk 0:03:25.6]} 30. Nd4 {[%clk 0:02:27.9]} 30...
Qxf5 {[%clk 0:03:22.8]} 31. Nxf5 {[%clk 0:02:24.3]} 31... Re2 {[%clk 0:03:19.1]}
32. Nxg7 {[%clk 0:02:18.2]} 32... Rxh3+ {[%clk 0:03:16.4]} 33. Kg1 {[%clk
0:02:14.3]} 33... Rg3+ {[%clk 0:03:16.3]} 34. Kh1 {[%clk 0:02:12.6]} 34... Rxg7
{[%clk 0:03:16.2]} 35. Rxf6 {[%clk 0:02:08.2]} 35... Rxc2 {[%clk 0:03:14]} 36.
Rf8+ {[%clk 0:02:06.3]} 36... Kc7 {[%clk 0:03:12.3]} 37. Rf1 {[%clk 0:02:04.5]}
37... Rgg2 {[%clk 0:03:08.5]} 38. Rf7+ {[%clk 0:02:01.5]} 38... Kb6 {[%clk
0:03:07.2]} 39. d4 {[%clk 0:01:57.9]} 39... Rh2+ {[%clk 0:03:05.1]} 40. Kg1
{[%clk 0:01:56.3]} 40... Rxb2 {[%clk 0:03:04.6]} 41. a4 {[%clk 0:01:53.1]} 41...
Ka5 {[%clk 0:03:02.6]} 42. Rc7 {[%clk 0:01:39]} 42... Rhd2 {[%clk 0:03:00.2]}
43. Rc5+ {[%clk 0:01:36.9]} 43... Kxa4 {[%clk 0:02:58.1]} 44. Rc1 {[%clk
0:01:33]} 44... Rg2+ {[%clk 0:02:57.3]} 45. Kh1 {[%clk 0:01:29.3]} 45... Rh2+
{[%clk 0:02:57.2]} 46. Kg1 {[%clk 0:01:28.1]} 46... Rbg2+ {[%clk 0:02:56.6]} 47.
Kf1 {[%clk 0:01:26.8]} 47... Rh1+ {[%clk 0:02:56.5]} 48. Kxg2 {[%clk 0:01:25.9]}
48... Rxc1 {[%clk 0:02:56.4]} 49. Kf3 {[%clk 0:01:24.6]} 49... Rd1 {[%clk
0:02:56.3]} 50. Ke3 {[%clk 0:01:23.8]} 50... Kb3 {[%clk 0:02:55.7]} 51. Kf4
{[%clk 0:01:21]} 51... Rxd4+ {[%clk 0:02:55.6]} 52. Ke5 {[%clk 0:01:20]} 52...
Rc4 {[%clk 0:02:55.5]} 53. Kxd5 {[%clk 0:01:19.1]} 53... a5 {[%clk 0:02:55.4]}
54. Kd6 {[%clk 0:01:17.2]} 54... a4 {[%clk 0:02:55.3]} 55. Kd7 {[%clk
0:01:16.1]} 55... a3 {[%clk 0:02:55.2]} 56. Kd8 {[%clk 0:01:15.4]} 56... a2
{[%clk 0:02:55.1]} 57. Kd7 {[%clk 0:01:14.8]} 57... a1=Q {[%clk 0:02:55]} 58.
Kd6 {[%clk 0:01:14.2]} 58... b5 {[%clk 0:02:54.9]} 59. Kd5 {[%clk 0:01:13.3]}
59... b4 {[%clk 0:02:54.8]} 60. Kd6 {[%clk 0:01:12.1]} 60... Kc3 {[%clk
0:02:54.7]} 61. Kd7 {[%clk 0:01:11.2]} 61... b3 {[%clk 0:02:54.6]} 62. Kd6
{[%clk 0:01:09]} 62... b2 {[%clk 0:02:54.5]} 63. Kd5 {[%clk 0:01:07.1]} 63...
b1=R {[%clk 0:02:54.4]} 64. Kd6 {[%clk 0:01:05.5]} 64... Rb6+ {[%clk 0:02:53.7]}
65. Kd7 {[%clk 0:00:59.7]} 65... Qa7+ {[%clk 0:02:52.3]} 66. Kd8 {[%clk
0:00:00.4]} 66... Kd4 {[%clk 0:02:49.1]} 0-1

[Event "Live Chess"]
[Site "Chess.com"]
[Date "2023.05.20"]
[Round "-"]
[White "gmnorfolk"]
[Black "lxbllngs"]
[Result "1-0"]
[WhiteElo "2128"]
[BlackElo "1742"]
[TimeControl "300"]
[EndTime "15:32:25 PDT"]
[Termination "gmnorfolk won by checkmate"]

1. d4 {[%clk 0:04:57.5]} 1... f5 {[%clk 0:04:58.8]} 2. Nc3 {[%clk 0:04:54.6]}
2... Nf6 {[%clk 0:04:56.5]} 3. Bf4 {[%clk 0:04:53.9]} 3... d5 {[%clk 0:04:55.9]}
4. e3 {[%clk 0:04:52.4]} 4... e6 {[%clk 0:04:54.9]} 5. Nb5 {[%clk 0:04:51.4]}
5... Na6 {[%clk 0:04:42.8]} 6. c4 {[%clk 0:04:51.3]} 6... c6 {[%clk 0:04:41.9]}
7. Nc3 {[%clk 0:04:48.6]} 7... Bb4 {[%clk 0:04:28.5]} 8. a3 {[%clk 0:04:47.3]}
8... Ba5 {[%clk 0:04:27.8]} 9. Nf3 {[%clk 0:04:41.6]} 9... O-O {[%clk
0:04:25.7]} 10. Ne5 {[%clk 0:04:39]} 10... Bd7 {[%clk 0:04:24.5]} 11. Qc2 {[%clk
0:04:37.9]} 11... Be8 {[%clk 0:04:23.6]} 12. Bd3 {[%clk 0:04:36.1]} 12... h6
{[%clk 0:04:20.6]} 13. h3 {[%clk 0:04:32.7]} 13... g5 {[%clk 0:04:19.5]} 14. Bh2
{[%clk 0:04:31.2]} 14... Bh5 {[%clk 0:04:19]} 15. O-O {[%clk 0:04:29.2]} 15...
Ne4 {[%clk 0:04:18.4]} 16. f3 {[%clk 0:04:25.9]} 16... Nxc3 {[%clk 0:04:13.6]}
17. bxc3 {[%clk 0:04:25.8]} 17... Bc7 {[%clk 0:04:11.7]} 18. cxd5 {[%clk
0:04:19.6]} 18... exd5 {[%clk 0:04:08.3]} 19. Bxf5 {[%clk 0:04:14.8]} 19... Qf6
{[%clk 0:03:47.9]} 20. g4 {[%clk 0:04:07.9]} 20... Bf7 {[%clk 0:03:42.2]} 21.
Nxf7 {[%clk 0:03:56.2]} 21... Bxh2+ {[%clk 0:03:39.6]} 22. Kxh2 {[%clk
0:03:54.8]} 22... Qxf7 {[%clk 0:03:38.9]} 23. e4 {[%clk 0:03:54]} 23... Nc7
{[%clk 0:03:26.1]} 24. f4 {[%clk 0:03:52.4]} 24... dxe4 {[%clk 0:03:22.2]} 25.
fxg5 {[%clk 0:03:48]} 25... Qe7 {[%clk 0:03:17.1]} 26. Bxe4 {[%clk 0:03:45.1]}
26... Qd6+ {[%clk 0:03:16.3]} 27. Kg2 {[%clk 0:03:41.7]} 27... Ne6 {[%clk
0:03:15.7]} 28. Bf5 {[%clk 0:03:18.8]} 28... Nf4+ {[%clk 0:02:46.3]} 29. Rxf4
{[%clk 0:03:17.5]} 29... Qxf4 {[%clk 0:02:45]} 30. Qb3+ {[%clk 0:03:05.8]} 30...
Kg7 {[%clk 0:02:20.3]} 31. Rf1 {[%clk 0:02:57.7]} 31... Qxg5 {[%clk 0:01:57.8]}
32. Qxb7+ {[%clk 0:02:51.8]} 32... Kh8 {[%clk 0:01:54.2]} 33. Qh7# {[%clk
0:02:49.8]} 1-0